[Event "Elite Hotels Open 2023"]
[Site "Elite Stadshotellet, Kungsgatan 6, Vaxjo, Sweden"]
[Date "2023.02.11"]
[Round "5.12"]
[White "Neretljak, Nedzad"]
[Black "Ernst, Thomas"]
[Result "1/2-1/2"]
[TimeControl "15 minutes + 5 seconds per move from move one (Round 1 - 4) / 90 minutes + 30 seconds per move from move one (Round 5 - 8)"]
[WhiteTitle "CM"]
[BlackTitle "GM"]
[WhiteFideId "1713132"]
[BlackFideId "1700065"]
[WhiteElo "2051"]
[BlackElo "2286"]

1. e4 {[%clk 01:30:57]} {[%emt 00:00:03]} c5 {[%clk 01:30:52]} {[%emt
00:00:08]} 2. b4 {[%clk 01:31:12]} {[%emt 00:00:14]} cxb4 {[%clk 01:31:04]}
{[%emt 00:00:20]} 3. d4 {[%clk 01:31:35]} {[%emt 00:00:05]} d5 {[%clk
01:30:02]} {[%emt 00:01:31]} 4. exd5 {[%clk 01:31:57]} {[%emt 00:00:09]} Qxd5
{[%clk 01:30:17]} {[%emt 00:00:15]} 5. c4 {[%clk 01:32:21]} {[%emt 00:00:06]}
bxc3 {[%clk 01:29:45]} {[%emt 00:01:02]} 6. Nxc3 {[%clk 01:32:43]} {[%emt
00:00:07]} Qd8 {[%clk 01:30:00]} {[%emt 00:00:15]} 7. Nf3 {[%clk 01:31:05]}
{[%emt 00:02:09]} Nf6 {[%clk 01:28:28]} {[%emt 00:02:03]} 8. Rb1 {[%clk
01:29:15]} {[%emt 00:02:18]} e6 {[%clk 01:28:07]} {[%emt 00:00:52]} 9. Bb5+
{[%clk 01:26:44]} {[%emt 00:03:00]} Bd7 {[%clk 01:20:34]} {[%emt 00:08:03]} 10.
d5 {[%clk 01:24:16]} {[%emt 00:02:59]} exd5 {[%clk 01:18:28]} {[%emt 00:02:36]}
11. Nxd5 {[%clk 01:17:07]} {[%emt 00:07:38]} Be7 {[%clk 01:17:30]} {[%emt
00:01:27]} 12. O-O {[%clk 01:15:07]} {[%emt 00:02:30]} Bxb5 {[%clk 01:10:09]}
{[%emt 00:07:52]} 13. Rxb5 {[%clk 01:08:33]} {[%emt 00:07:05]} Nxd5 {[%clk
01:10:13]} {[%emt 00:00:26]} 14. Rxd5 {[%clk 01:08:52]} {[%emt 00:00:09]} Qc7
{[%clk 01:09:15]} {[%emt 00:01:28]} 15. Qa4+ {[%clk 00:59:46]} {[%emt
00:09:38]} Nc6 {[%clk 01:07:17]} {[%emt 00:02:28]} 16. Qg4 {[%clk 00:54:10]}
{[%emt 00:06:05]} O-O {[%clk 01:06:32]} {[%emt 00:01:15]} 17. Bb2 {[%clk
00:52:14]} {[%emt 00:02:24]} f6 {[%clk 01:06:21]} {[%emt 00:00:43]} 18. Rd7
{[%clk 00:50:56]} {[%emt 00:01:48]} Qb6 {[%clk 01:05:56]} {[%emt 00:00:56]} 19.
Ba3 {[%clk 00:51:01]} {[%emt 00:00:24]} Rf7 {[%clk 01:05:17]} {[%emt 00:01:09]}
20. Qe6 {[%clk 00:48:20]} {[%emt 00:03:12]} Rd8 {[%clk 00:59:30]} {[%emt
00:06:16]} 21. Rfd1 {[%clk 00:38:57]} {[%emt 00:09:52]} Rxd7 {[%clk 00:50:13]}
{[%emt 00:09:49]} 22. Rxd7 {[%clk 00:39:10]} {[%emt 00:00:16]} Qb1+ {[%clk
00:50:17]} {[%emt 00:00:26]} 23. Ne1 {[%clk 00:39:33]} {[%emt 00:00:06]} Kf8
{[%clk 00:49:20]} {[%emt 00:01:28]} 24. Rc7 {[%clk 00:37:47]} {[%emt 00:02:16]}
g6 {[%clk 00:49:38]} {[%emt 00:00:13]} 25. g4 {[%clk 00:34:48]} {[%emt
00:03:28]} h5 {[%clk 00:46:27]} {[%emt 00:03:41]} 26. h3 {[%clk 00:31:00]}
{[%emt 00:04:18]} hxg4 {[%clk 00:46:08]} {[%emt 00:00:49]} 27. hxg4 {[%clk
00:31:06]} {[%emt 00:00:23]} g5 {[%clk 00:45:46]} {[%emt 00:00:52]} 28. Kg2
{[%clk 00:30:21]} {[%emt 00:01:15]} Qg6 {[%clk 00:37:39]} {[%emt 00:08:37]} 29.
Bxe7+ {[%clk 00:26:33]} {[%emt 00:04:19]} Rxe7 {[%clk 00:36:54]} {[%emt
00:01:15]} 30. Rc8+ {[%clk 00:26:14]} {[%emt 00:00:49]} Re8 {[%clk 00:36:17]}
{[%emt 00:01:07]} 31. Rxe8+ {[%clk 00:25:14]} {[%emt 00:01:30]} Qxe8 {[%clk
00:36:43]} {[%emt 00:00:04]} 32. Qxf6+ {[%clk 00:25:32]} {[%emt 00:00:12]} Qf7
{[%clk 00:37:07]} {[%emt 00:00:06]} 33. Qxg5 {[%clk 00:24:38]} {[%emt
00:01:23]} Qxa2 {[%clk 00:37:28]} {[%emt 00:00:10]} 34. Qc5+ {[%clk 00:23:59]}
{[%emt 00:01:09]} Ke8 {[%clk 00:37:05]} {[%emt 00:00:50]} 35. Qd6 {[%clk
00:20:07]} {[%emt 00:04:24]} Qc4 {[%clk 00:32:08]} {[%emt 00:05:27]} 36. Kg3
{[%clk 00:19:01]} {[%emt 00:01:37]} a5 {[%clk 00:32:15]} {[%emt 00:00:23]} 37.
Nd3 {[%clk 00:15:57]} {[%emt 00:03:33]} Qd4 {[%clk 00:31:12]} {[%emt 00:01:33]}
38. Qg6+ {[%clk 00:15:13]} {[%emt 00:01:15]} Kd7 {[%clk 00:29:51]} {[%emt
00:01:51]} 39. Nf4 {[%clk 00:15:31]} {[%emt 00:00:11]} a4 {[%clk 00:27:05]}
{[%emt 00:03:18]} 40. Qf7+ {[%clk 00:14:31]} {[%emt 00:01:29]} Kc8 {[%clk
00:27:03]} {[%emt 00:00:25]} 41. g5 {[%clk 00:11:12]} {[%emt 00:03:56]} Qc3+
{[%clk 00:26:53]} {[%emt 00:00:37]} 42. f3 {[%clk 00:11:26]} {[%emt 00:00:18]}
Qxf3+ {[%clk 00:26:49]} {[%emt 00:00:35]} 43. Kxf3 {[%clk 00:08:42]} {[%emt
00:03:14]} Ne5+ {[%clk 00:27:13]} {[%emt 00:00:06]} 44. Ke3 {[%clk 00:07:57]}
{[%emt 00:01:16]} Nxf7 {[%clk 00:27:37]} {[%emt 00:00:06]} 45. g6 {[%clk
00:08:14]} {[%emt 00:00:12]} Nh6 {[%clk 00:27:39]} {[%emt 00:00:26]} 46. Kd4
{[%clk 00:08:32]} {[%emt 00:00:14]} Kd7 {[%clk 00:27:37]} {[%emt 00:00:31]} 47.
Kc4 {[%clk 00:08:32]} {[%emt 00:00:31]} Ke7 {[%clk 00:27:30]} {[%emt 00:00:37]}
48. Kb4 {[%clk 00:08:50]} {[%emt 00:00:12]} b5 {[%clk 00:27:41]} {[%emt
00:00:19]} 49. Nd5+ {[%clk 00:09:06]} {[%emt 00:00:14]} Kf8 {[%clk 00:27:58]}
{[%emt 00:00:13]} 50. Nc3 {[%clk 00:09:26]} {[%emt 00:00:10]} Kg7 {[%clk
00:28:00]} {[%emt 00:00:28]} 51. Nxb5 {[%clk 00:09:46]} {[%emt 00:00:11]} Kxg6
{[%clk 00:28:21]} {[%emt 00:00:09]} 52. Kxa4 {[%clk 00:10:12]} {[%emt
00:00:04]} 1/2-1/2

[Event "Elite Hotels Open 2023"]
[Site "Elite Stadshotellet, Kungsgatan 6, Vaxjo, Sweden"]
[Date "2023.02.11"]
[Round "5.13"]
[White "Krantz, Christopher"]
[Black "Johansson, William"]
[Result "1-0"]
[TimeControl "15 minutes + 5 seconds per move from move one (Round 1 - 4) / 90 minutes + 30 seconds per move from move one (Round 5 - 8)"]
[WhiteFideId "1707876"]
[BlackFideId "1744070"]
[WhiteElo "2262"]
[BlackElo "1981"]

1. d4 {[%clk 01:30:57]} {[%emt 00:00:02]} d6 {[%clk 01:30:48]} {[%emt
00:00:13]} 2. Nf3 {[%clk 01:31:04]} {[%emt 00:00:21]} Nd7 {[%clk 01:30:36]}
{[%emt 00:00:43]} 3. e4 {[%clk 01:28:56]} {[%emt 00:02:37]} e5 {[%clk
01:30:56]} {[%emt 00:00:11]} 4. Bc4 {[%clk 01:28:29]} {[%emt 00:00:57]} Be7
{[%clk 01:29:46]} {[%emt 00:01:40]} 5. dxe5 {[%clk 01:24:05]} {[%emt 00:04:54]}
Nxe5 {[%clk 01:29:50]} {[%emt 00:00:27]} 6. Nxe5 {[%clk 01:23:45]} {[%emt
00:00:49]} dxe5 {[%clk 01:30:11]} {[%emt 00:00:10]} 7. Qh5 {[%clk 01:19:52]}
{[%emt 00:04:22]} g6 {[%clk 01:22:40]} {[%emt 00:08:01]} 8. Qxe5 {[%clk
01:19:43]} {[%emt 00:00:38]} Nf6 {[%clk 01:23:05]} {[%emt 00:00:06]} 9. Bh6
{[%clk 01:17:45]} {[%emt 00:02:27]} Rg8 {[%clk 01:20:15]} {[%emt 00:03:21]} 10.
f3 {[%clk 01:14:07]} {[%emt 00:04:08]} Qd6 {[%clk 01:18:44]} {[%emt 00:02:02]}
11. Qxd6 {[%clk 01:05:01]} {[%emt 00:09:35]} Bxd6 {[%clk 01:19:11]} {[%emt
00:00:03]} 12. Bg5 {[%clk 01:03:01]} {[%emt 00:02:29]} Nd7 {[%clk 01:12:39]}
{[%emt 00:07:03]} 13. Nc3 {[%clk 01:02:03]} {[%emt 00:01:28]} Ne5 {[%clk
01:12:12]} {[%emt 00:00:58]} 14. Bb3 {[%clk 01:01:55]} {[%emt 00:00:36]} h6
{[%clk 01:08:35]} {[%emt 00:04:09]} 15. Bxh6 {[%clk 00:54:45]} {[%emt
00:07:40]} g5 {[%clk 01:08:48]} {[%emt 00:00:17]} 16. Nb5 {[%clk 00:48:36]}
{[%emt 00:06:39]} Rg6 {[%clk 01:04:59]} {[%emt 00:04:19]} 17. Nxd6+ {[%clk
00:47:45]} {[%emt 00:01:22]} cxd6 {[%clk 01:05:26]} {[%emt 00:00:02]} 18. f4
{[%clk 00:46:41]} {[%emt 00:01:34]} Rxh6 {[%clk 01:04:30]} {[%emt 00:01:27]} 19.
fxe5 {[%clk 00:47:05]} {[%emt 00:00:06]} dxe5 {[%clk 01:04:52]} {[%emt
00:00:08]} 20. O-O {[%clk 00:41:51]} {[%emt 00:05:44]} Be6 {[%clk 01:04:39]}
{[%emt 00:00:42]} 21. Rad1 {[%clk 00:39:49]} {[%emt 00:02:32]} Ke7 {[%clk
01:02:38]} {[%emt 00:02:30]} 22. g3 {[%clk 00:38:59]} {[%emt 00:01:19]} Rf6
{[%clk 00:55:23]} {[%emt 00:07:47]} 23. Rxf6 {[%clk 00:34:46]} {[%emt
00:04:42]} Kxf6 {[%clk 00:55:51]} {[%emt 00:00:03]} 24. Kg2 {[%clk 00:27:03]}
{[%emt 00:08:13]} Rc8 {[%clk 00:52:09]} {[%emt 00:04:11]} 25. c3 {[%clk
00:27:10]} {[%emt 00:00:24]} Bxb3 {[%clk 00:47:39]} {[%emt 00:05:00]} 26. axb3
{[%clk 00:27:32]} {[%emt 00:00:08]} Ke6 {[%clk 00:48:02]} {[%emt 00:00:07]} 27.
h4 {[%clk 00:21:50]} {[%emt 00:06:12]} g4 {[%clk 00:42:53]} {[%emt 00:05:39]}
28. Kf2 {[%clk 00:19:36]} {[%emt 00:02:44]} Rh8 {[%clk 00:37:55]} {[%emt
00:05:27]} 29. Ke3 {[%clk 00:19:34]} {[%emt 00:00:33]} f6 {[%clk 00:36:18]}
{[%emt 00:02:06]} 30. b4 {[%clk 00:19:17]} {[%emt 00:00:47]} a6 {[%clk
00:35:57]} {[%emt 00:00:52]} 31. c4 {[%clk 00:14:49]} {[%emt 00:04:58]} Rc8
{[%clk 00:35:12]} {[%emt 00:01:14]} 32. c5 {[%clk 00:13:03]} {[%emt 00:02:16]}
Rc6 {[%clk 00:35:13]} {[%emt 00:00:30]} 33. h5 {[%clk 00:10:27]} {[%emt
00:03:05]} Rc7 {[%clk 00:32:16]} {[%emt 00:03:28]} 34. Rd6+ {[%clk 00:10:39]}
{[%emt 00:00:18]} Kf7 {[%clk 00:31:16]} {[%emt 00:01:30]} 35. Kd3 {[%clk
00:10:40]} {[%emt 00:00:29]} Kg7 {[%clk 00:30:53]} {[%emt 00:00:53]} 36. Kc4
{[%clk 00:10:40]} {[%emt 00:00:30]} Rf7 {[%clk 00:30:24]} {[%emt 00:00:59]} 37.
Kd5 {[%clk 00:09:49]} {[%emt 00:01:21]} f5 {[%clk 00:30:02]} {[%emt 00:00:52]}
38. Kxe5 {[%clk 00:08:31]} {[%emt 00:01:48]} f4 {[%clk 00:28:18]} {[%emt
00:02:14]} 39. gxf4 {[%clk 00:08:04]} {[%emt 00:00:56]} Re7+ {[%clk 00:28:41]}
{[%emt 00:00:08]} 40. Kf5 {[%clk 00:08:18]} {[%emt 00:00:15]} 1-0

[Event "Elite Hotels Open 2023"]
[Site "Elite Stadshotellet, Kungsgatan 6, Vaxjo, Sweden"]
[Date "2023.02.11"]
[Round "5.14"]
[White "Johansson, Gunnar"]
[Black "Slettebo, Jan"]
[Result "1-0"]
[TimeControl "15 minutes + 5 seconds per move from move one (Round 1 - 4) / 90 minutes + 30 seconds per move from move one (Round 5 - 8)"]
[WhiteFideId "1703501"]
[BlackFideId "1704958"]
[WhiteElo "2260"]
[BlackElo "1971"]

1. d4 {[%clk 01:30:56]} {[%emt 00:00:03]} d5 {[%clk 01:30:52]} {[%emt
00:00:09]} 2. c4 {[%clk 01:31:20]} {[%emt 00:00:06]} e6 {[%clk 01:30:57]}
{[%emt 00:00:24]} 3. Nf3 {[%clk 01:31:39]} {[%emt 00:00:11]} a6 {[%clk
01:31:13]} {[%emt 00:00:14]} 4. Nbd2 {[%clk 01:31:55]} {[%emt 00:00:13]} Nf6
{[%clk 01:30:02]} {[%emt 00:01:42]} 5. g3 {[%clk 01:32:11]} {[%emt 00:00:15]}
c5 {[%clk 01:29:46]} {[%emt 00:00:46]} 6. Bg2 {[%clk 01:31:19]} {[%emt
00:01:21]} Nc6 {[%clk 01:29:13]} {[%emt 00:01:03]} 7. cxd5 {[%clk 01:29:54]}
{[%emt 00:01:55]} exd5 {[%clk 01:28:26]} {[%emt 00:01:18]} 8. O-O {[%clk
01:29:32]} {[%emt 00:00:51]} c4 {[%clk 01:28:04]} {[%emt 00:00:52]} 9. Qc2
{[%clk 01:01:48]} {[%emt 00:28:15]} Be7 {[%clk 01:25:51]} {[%emt 00:02:42]} 10.
b3 {[%clk 00:53:56]} {[%emt 00:08:22]} Be6 {[%clk 01:20:26]} {[%emt 00:05:55]}
11. bxc4 {[%clk 00:48:50]} {[%emt 00:05:37]} dxc4 {[%clk 01:20:47]} {[%emt
00:00:09]} 12. Bb2 {[%clk 00:48:57]} {[%emt 00:00:22]} Rc8 {[%clk 01:17:17]}
{[%emt 00:04:00]} 13. a3 {[%clk 00:40:05]} {[%emt 00:09:23]} b5 {[%clk
01:05:49]} {[%emt 00:11:56]} 14. e4 {[%clk 00:39:23]} {[%emt 00:01:12]} b4
{[%clk 01:05:00]} {[%emt 00:01:21]} 15. d5 {[%clk 00:22:29]} {[%emt 00:17:23]}
c3 {[%clk 01:04:56]} {[%emt 00:00:33]} 16. dxe6 {[%clk 00:22:35]} {[%emt
00:00:25]} fxe6 {[%clk 01:05:12]} {[%emt 00:00:14]} 17. Bxc3 {[%clk 00:20:27]}
{[%emt 00:02:38]} 1-0

[Event "Elite Hotels Open 2023"]
[Site "Elite Stadshotellet, Kungsgatan 6, Vaxjo, Sweden"]
[Date "2023.02.11"]
[Round "5.15"]
[White "Mattsson, Michael"]
[Black "Burwick, Malte"]
[Result "0-1"]
[TimeControl "15 minutes + 5 seconds per move from move one (Round 1 - 4) / 90 minutes + 30 seconds per move from move one (Round 5 - 8)"]
[WhiteFideId "1708961"]
[BlackFideId "1702475"]
[WhiteElo "2048"]
[BlackElo "2219"]

1. e4 {[%clk 01:30:57]} {[%emt 00:00:01]} d5 {[%clk 01:30:34]} {[%emt
00:00:27]} 2. exd5 {[%clk 01:31:22]} {[%emt 00:00:05]} Qxd5 {[%clk 01:30:58]}
{[%emt 00:00:06]} 3. Nc3 {[%clk 01:31:46]} {[%emt 00:00:06]} Qd6 {[%clk
01:31:22]} {[%emt 00:00:06]} 4. d4 {[%clk 01:31:04]} {[%emt 00:01:12]} Nf6
{[%clk 01:30:11]} {[%emt 00:01:40]} 5. h3 {[%clk 01:26:33]} {[%emt 00:05:02]}
a6 {[%clk 01:21:40]} {[%emt 00:09:01]} 6. g3 {[%clk 01:25:27]} {[%emt
00:01:36]} Nc6 {[%clk 01:09:08]} {[%emt 00:13:03]} 7. Nge2 {[%clk 01:19:28]}
{[%emt 00:06:28]} e5 {[%clk 01:07:12]} {[%emt 00:02:25]} 8. dxe5 {[%clk
01:16:31]} {[%emt 00:03:29]} Nxe5 {[%clk 01:02:33]} {[%emt 00:05:09]} 9. Bg2
{[%clk 01:16:29]} {[%emt 00:00:31]} Qxd1+ {[%clk 01:02:52]} {[%emt 00:00:11]}
10. Nxd1 {[%clk 01:15:47]} {[%emt 00:01:11]} Bb4+ {[%clk 00:57:15]} {[%emt
00:06:07]} 11. Ndc3 {[%clk 01:10:17]} {[%emt 00:06:01]} O-O {[%clk 00:55:02]}
{[%emt 00:02:42]} 12. Bf4 {[%clk 01:08:57]} {[%emt 00:01:51]} Re8 {[%clk
00:50:03]} {[%emt 00:05:29]} 13. O-O-O {[%clk 01:08:54]} {[%emt 00:00:33]} c6
{[%clk 00:47:12]} {[%emt 00:03:21]} 14. Bxe5 {[%clk 01:02:45]} {[%emt
00:06:40]} Rxe5 {[%clk 00:47:30]} {[%emt 00:00:11]} 15. Rd8+ {[%clk 01:03:10]}
{[%emt 00:00:05]} Re8 {[%clk 00:46:46]} {[%emt 00:01:14]} 16. Rxe8+ {[%clk
01:03:06]} {[%emt 00:00:35]} Nxe8 {[%clk 00:47:06]} {[%emt 00:00:09]} 17. Rd1
{[%clk 00:59:10]} {[%emt 00:04:26]} Kf8 {[%clk 00:42:19]} {[%emt 00:05:16]} 18.
Na4 {[%clk 00:56:24]} {[%emt 00:03:17]} Ba5 {[%clk 00:42:29]} {[%emt 00:00:19]}
19. f4 {[%clk 00:46:24]} {[%emt 00:10:30]} Ke7 {[%clk 00:41:32]} {[%emt
00:01:27]} 20. Nd4 {[%clk 00:44:44]} {[%emt 00:02:09]} Kf8 {[%clk 00:37:27]}
{[%emt 00:04:36]} 21. Nb3 {[%clk 00:41:05]} {[%emt 00:04:09]} Bc7 {[%clk
00:37:37]} {[%emt 00:00:20]} 22. Nbc5 {[%clk 00:38:23]} {[%emt 00:03:13]} Nf6
{[%clk 00:37:40]} {[%emt 00:00:26]} 23. Bf3 {[%clk 00:34:45]} {[%emt 00:04:07]}
Rb8 {[%clk 00:36:53]} {[%emt 00:01:17]} 24. h4 {[%clk 00:34:35]} {[%emt
00:00:41]} h5 {[%clk 00:27:21]} {[%emt 00:10:02]} 25. Nc3 {[%clk 00:25:49]}
{[%emt 00:09:15]} g6 {[%clk 00:20:02]} {[%emt 00:07:50]} 26. N3e4 {[%clk
00:21:28]} {[%emt 00:04:51]} Nxe4 {[%clk 00:19:57]} {[%emt 00:00:35]} 27. Bxe4
{[%clk 00:21:13]} {[%emt 00:00:46]} Ke7 {[%clk 00:18:54]} {[%emt 00:01:32]} 28.
Re1 {[%clk 00:21:05]} {[%emt 00:00:38]} Kf6 {[%clk 00:13:36]} {[%emt 00:05:47]}
29. Bd3 {[%clk 00:15:38]} {[%emt 00:05:58]} Bg4 {[%clk 00:08:39]} {[%emt
00:05:26]} 30. Ne4+ {[%clk 00:14:30]} {[%emt 00:01:38]} Kg7 {[%clk 00:08:28]}
{[%emt 00:00:40]} 31. Ng5 {[%clk 00:10:33]} {[%emt 00:04:28]} Bd6 {[%clk
00:08:44]} {[%emt 00:00:14]} 32. Bc4 {[%clk 00:10:08]} {[%emt 00:00:56]} f6
{[%clk 00:08:39]} {[%emt 00:00:34]} 33. Ne4 {[%clk 00:06:44]} {[%emt 00:03:55]}
Re8 {[%clk 00:07:16]} {[%emt 00:01:53]} 34. Kd2 {[%clk 00:07:04]} {[%emt
00:00:10]} Bf8 {[%clk 00:06:47]} {[%emt 00:00:58]} 35. Nf2 {[%clk 00:06:08]}
{[%emt 00:01:26]} Rd8+ {[%clk 00:05:44]} {[%emt 00:01:33]} 36. Kc1 {[%clk
00:06:09]} {[%emt 00:00:29]} Bf5 {[%clk 00:05:43]} {[%emt 00:00:31]} 37. Rd1
{[%clk 00:02:05]} {[%emt 00:04:35]} Re8 {[%clk 00:04:33]} {[%emt 00:01:40]} 38.
Kd2 {[%clk 00:01:38]} {[%emt 00:00:56]} Bb4+ {[%clk 00:04:45]} {[%emt
00:00:17]} 39. c3 {[%clk 00:01:44]} {[%emt 00:00:25]} Bc5 {[%clk 00:05:10]}
{[%emt 00:00:06]} 40. Rf1 {[%clk 00:01:33]} {[%emt 00:00:40]} b5 {[%clk
00:04:37]} {[%emt 00:01:03]} 41. Bd3 {[%clk 00:01:04]} {[%emt 00:00:58]} Rd8
{[%clk 00:02:07]} {[%emt 00:03:00]} 42. Kc2 {[%clk 00:01:32]} {[%emt 00:00:03]}
Bxf2 {[%clk 00:02:29]} {[%emt 00:00:08]} 43. Bxf5 {[%clk 00:01:59]} {[%emt
00:00:03]} Bxg3 {[%clk 00:02:21]} {[%emt 00:00:38]} 44. Bxg6 {[%clk 00:01:37]}
{[%emt 00:00:52]} Kxg6 {[%clk 00:01:57]} {[%emt 00:00:55]} 45. Rg1 {[%clk
00:01:54]} {[%emt 00:00:12]} Kf5 {[%clk 00:02:21]} {[%emt 00:00:06]} 46. Rxg3
{[%clk 00:02:22]} {[%emt 00:00:02]} Kxf4 {[%clk 00:02:45]} {[%emt 00:00:06]} 47.
Rg6 {[%clk 00:02:36]} {[%emt 00:00:15]} Rd6 {[%clk 00:02:14]} {[%emt 00:01:02]}
48. c4 {[%clk 00:02:46]} {[%emt 00:00:20]} Kf5 {[%clk 00:01:54]} {[%emt
00:00:50]} 49. Rh6 {[%clk 00:01:01]} {[%emt 00:02:15]} Kg4 {[%clk 00:02:21]}
{[%emt 00:00:02]} 50. c5 {[%clk 00:01:18]} {[%emt 00:00:14]} Re6 {[%clk
00:02:21]} {[%emt 00:00:30]} 51. b4 {[%clk 00:01:07]} {[%emt 00:00:41]} Kxh4
{[%clk 00:02:42]} {[%emt 00:00:09]} 52. Rg6 {[%clk 00:01:29]} {[%emt 00:00:08]}
Kh3 {[%clk 00:03:02]} {[%emt 00:00:10]} 53. Rg7 {[%clk 00:01:08]} {[%emt
00:00:52]} h4 {[%clk 00:02:54]} {[%emt 00:00:38]} 54. Rd7 {[%clk 00:01:35]}
{[%emt 00:00:02]} Kg4 {[%clk 00:03:06]} {[%emt 00:00:17]} 55. Rg7+ {[%clk
00:01:49]} {[%emt 00:00:15]} Kf5 {[%clk 00:02:51]} {[%emt 00:00:47]} 56. Rh7
{[%clk 00:01:55]} {[%emt 00:00:24]} Re2+ {[%clk 00:02:17]} {[%emt 00:01:03]} 57.
Kd3 {[%clk 00:01:51]} {[%emt 00:00:35]} Rh2 {[%clk 00:02:20]} {[%emt 00:00:26]}
58. Rc7 {[%clk 00:02:04]} {[%emt 00:00:18]} h3 {[%clk 00:02:41]} {[%emt
00:00:08]} 59. Rxc6 {[%clk 00:02:32]} {[%emt 00:00:02]} Rxa2 {[%clk 00:02:51]}
{[%emt 00:00:19]} 60. Rc8 {[%clk 00:02:49]} {[%emt 00:00:14]} Ke6 {[%clk
00:02:13]} {[%emt 00:01:07]} 61. Rh8 {[%clk 00:01:32]} {[%emt 00:01:48]} a5
{[%clk 00:01:53]} {[%emt 00:00:50]} 62. Rh7 {[%clk 00:01:33]} {[%emt 00:00:29]}
axb4 {[%clk 00:01:53]} {[%emt 00:00:30]} 63. c6 {[%clk 00:01:41]} {[%emt
00:00:23]} Ra6 {[%clk 00:01:58]} {[%emt 00:00:25]} 64. c7 {[%clk 00:01:48]}
{[%emt 00:00:24]} Rc6 {[%clk 00:02:17]} {[%emt 00:00:10]} 0-1